[Event "2026 Biel Blitz Open"]
[Site "Biel, CH"]
[Date "2026.07.19"]
[Round "3"]
[White "Garcia, Miguel"]
[Black "Kamildjanov, Saidbek"]
[Result "0-1"]
[Board "54"]
[TimeControl "180+2"]
[WhiteFideId "1317431"]
[BlackFideId "151105026"]
[WhiteElo "1938"]
[BlackElo "1659"]
[WhiteClock "0:00:16"]
[BlackClock "0:01:26"]
[Variant "Standard"]
[EndDate "2026.07.19"]
[EndTime "12:26:54"]

1. d4 {[%clk 0:02:25]}  d5 {[%clk 0:03:03]} 2. Nf3 {[%clk 0:02:25]}  Bf5 {[%clk 0:02:59]} 3. Bf4 {[%clk 0:02:17]}  Nf6 {[%clk 0:03:03]}
4. c4 {[%clk 0:02:16]}  e6 {[%clk 0:03:04]} 5. Nc3 {[%clk 0:02:17]}  Bb4 {[%clk 0:03:05]} 6. e3 {[%clk 0:02:17]}  Ne4 {[%clk 0:03:03]}
7. Qb3 {[%clk 0:02:12]}  Bxc3+ {[%clk 0:03:00]} 8. bxc3 {[%clk 0:02:12]}  b6 {[%clk 0:02:59]} 9. cxd5 {[%clk 0:02:02]}  exd5 {[%clk 0:02:56]}
10. c4 {[%clk 0:02:01]}  dxc4 {[%clk 0:02:54]} 11. Bxc4 {[%clk 0:02:01]}  O-O {[%clk 0:02:35]} 12. O-O {[%clk 0:01:56]}  c6 {[%clk 0:02:34]}
13. Rfd1 {[%clk 0:01:43]}  b5 {[%clk 0:02:34]} 14. Be2 {[%clk 0:01:43]}  Nd7 {[%clk 0:02:33]} 15. Rac1 {[%clk 0:01:30]}  Rc8 {[%clk 0:02:34]}
16. a4 {[%clk 0:01:25]}  a6 {[%clk 0:02:33]} 17. Ne5 {[%clk 0:01:15]}  Nxe5 {[%clk 0:02:30]} 18. Bxe5 {[%clk 0:01:09]}  Qb6 {[%clk 0:02:23]}
19. f3 {[%clk 0:01:00]}  Ng5 {[%clk 0:02:15]} 20. Rc5 {[%clk 0:00:46]}  Ne6 {[%clk 0:02:10]} 21. Rc3 {[%clk 0:00:37]}  Kh8 {[%clk 0:02:10]}
22. Rdc1 {[%clk 0:00:35]}  f6 {[%clk 0:02:02]} 23. Bd6 {[%clk 0:00:35]}  Rfd8 {[%clk 0:02:01]} 24. Bg3 {[%clk 0:00:35]}  Rxd4 {[%clk 0:01:37]}
25. exd4 {[%clk 0:00:30]}  Nxd4 {[%clk 0:01:37]} 26. Qa2 {[%clk 0:00:14]}  Nxe2+ {[%clk 0:01:36]} 27. Kh1 {[%clk 0:00:16]}  Nxc3 {[%clk 0:01:36]}
28. Rxc3 {[%clk 0:00:17]}  Qd4 {[%clk 0:01:32]} 29. axb5 {[%clk 0:00:16]}  Qd1+ {[%clk 0:01:26]} 0-1

[Event "2026 Biel Blitz Open"]
[Site "Biel, CH"]
[Date "2026.07.19"]
[Round "4"]
[White "Thorfinnsson, Bjorn"]
[Black "Bu, Xiangzhi"]
[Result "0-1"]
[Board "1"]
[TimeControl "180+2"]
[WhiteFideId "2300982"]
[BlackFideId "8601445"]
[WhiteElo "2396"]
[BlackElo "2719"]
[WhiteTitle "IM"]
[BlackTitle "GM"]
[WhiteClock "0:00:20"]
[BlackClock "0:00:10"]
[Variant "Standard"]
[EndDate "2026.07.19"]
[EndTime "12:51:53"]

1. d4 {[%clk 0:03:03]}  d5 {[%clk 0:03:04]} 2. Nf3 {[%clk 0:03:04]}  Nf6 {[%clk 0:03:05]} 3. Bg5 {[%clk 0:03:05]}  c5 {[%clk 0:03:06]}
4. e3 {[%clk 0:03:05]}  Qb6 {[%clk 0:03:07]} 5. Nc3 {[%clk 0:03:01]}  e6 {[%clk 0:03:04]} 6. Rb1 {[%clk 0:02:48]}  Nc6 {[%clk 0:02:58]}
7. a3 {[%clk 0:02:42]}  cxd4 {[%clk 0:02:56]} 8. exd4 {[%clk 0:02:43]}  Ne4 {[%clk 0:02:55]} 9. Be3 {[%clk 0:02:41]}  Qa5 {[%clk 0:02:42]}
10. Bd3 {[%clk 0:02:24]}  Nxc3 {[%clk 0:02:41]} 11. bxc3 {[%clk 0:02:25]}  Qxc3+ {[%clk 0:02:41]} 12. Bd2 {[%clk 0:02:26]}  Qxa3 {[%clk 0:02:42]}
13. O-O {[%clk 0:02:27]}  Be7 {[%clk 0:02:40]} 14. Re1 {[%clk 0:02:20]}  Qd6 {[%clk 0:02:04]} 15. Rb3 {[%clk 0:02:12]}  a5 {[%clk 0:01:37]}
16. Qa1 {[%clk 0:02:07]}  a4 {[%clk 0:01:35]} 17. c4 {[%clk 0:02:02]}  dxc4 {[%clk 0:01:23]} 18. Bxc4 {[%clk 0:02:02]}  axb3 {[%clk 0:01:24]}
19. Qxa8 {[%clk 0:02:03]}  O-O {[%clk 0:01:25]} 20. Qa4 {[%clk 0:01:25]}  Nxd4 {[%clk 0:01:14]} 21. Nxd4 {[%clk 0:01:26]}  Qxd4 {[%clk 0:01:09]}
22. Be3 {[%clk 0:01:24]}  Qc3 {[%clk 0:00:56]} 23. Rc1 {[%clk 0:01:25]}  Qb4 {[%clk 0:00:56]} 24. Bxb3 {[%clk 0:01:26]}  Qxa4 {[%clk 0:00:52]}
25. Bxa4 {[%clk 0:01:27]}  e5 {[%clk 0:00:49]} 26. h3 {[%clk 0:01:18]}  Bd6 {[%clk 0:00:31]} 27. Rd1 {[%clk 0:01:14]}  Be7 {[%clk 0:00:23]}
28. Rc1 {[%clk 0:01:15]}  Bd6 {[%clk 0:00:18]} 29. Rd1 {[%clk 0:01:16]}  Bc7 {[%clk 0:00:19]} 30. Rc1 {[%clk 0:01:16]}  Bd6 {[%clk 0:00:14]}
31. Rd1 {[%clk 0:01:16]}  Bb4 {[%clk 0:00:12]} 32. Rb1 {[%clk 0:01:17]}  Ba5 {[%clk 0:00:11]} 33. Rb5 {[%clk 0:00:54]}  Bc7 {[%clk 0:00:12]}
34. Rc5 {[%clk 0:00:55]}  Bb8 {[%clk 0:00:13]} 35. Rc1 {[%clk 0:00:48]}  Be6 {[%clk 0:00:13]} 36. Rb1 {[%clk 0:00:41]}  Bd5 {[%clk 0:00:15]}
37. Rd1 {[%clk 0:00:33]}  Bc6 {[%clk 0:00:16]} 38. Bb3 {[%clk 0:00:34]}  Bc7 {[%clk 0:00:16]} 39. Rc1 {[%clk 0:00:29]}  Rc8 {[%clk 0:00:14]}
40. Rc2 {[%clk 0:00:27]}  Bd6 {[%clk 0:00:13]} 41. Rd2 {[%clk 0:00:25]}  Be7 {[%clk 0:00:15]} 42. Ra2 {[%clk 0:00:19]}  Kf8 {[%clk 0:00:16]}
43. Ra5 {[%clk 0:00:18]}  f6 {[%clk 0:00:16]} 44. Ra1 {[%clk 0:00:16]}  g5 {[%clk 0:00:12]} 45. h4 {[%clk 0:00:17]}  h6 {[%clk 0:00:14]}
46. hxg5 {[%clk 0:00:18]}  hxg5 {[%clk 0:00:15]} 47. f3 {[%clk 0:00:18]}  Kg7 {[%clk 0:00:14]} 48. Kf2 {[%clk 0:00:19]}  Bb5 {[%clk 0:00:13]}
49. Rb1 {[%clk 0:00:20]}  Bc6 {[%clk 0:00:10]} 50. Be6 {[%clk 0:00:20]}  Ra8 {[%clk 0:00:12]} 51. Bf5 {[%clk 0:00:21]}  Ra2+ {[%clk 0:00:07]}
52. Kg3 {[%clk 0:00:22]}  Bd6 {[%clk 0:00:08]} 53. Rh1 {[%clk 0:00:23]}  e4+ {[%clk 0:00:09]} 54. f4 {[%clk 0:00:20]}  gxf4+ {[%clk 0:00:10]}
55. Bxf4 {[%clk 0:00:22]}  Bxf4+ {[%clk 0:00:10]} 56. Kxf4 {[%clk 0:00:23]}  Rf2+ {[%clk 0:00:11]} 57. Kg4 {[%clk 0:00:23]}  Rxg2+ {[%clk 0:00:12]}
58. Kf4 {[%clk 0:00:24]}  Rf2+ {[%clk 0:00:13]} 59. Kg4 {[%clk 0:00:25]}  e3 {[%clk 0:00:14]} 60. Re1 {[%clk 0:00:21]}  e2 {[%clk 0:00:14]}
61. Bd3 {[%clk 0:00:22]}  f5+ {[%clk 0:00:09]} 62. Bxf5 {[%clk 0:00:20]}  Rf1 {[%clk 0:00:10]} 0-1

[Event "2026 Biel Blitz Open"]
[Site "Biel, CH"]
[Date "2026.07.19"]
[Round "4"]
[White "Safarli, Eltaj"]
[Black "Mohammad Nubairshah Shaikh"]
[Result "0-1"]
[Board "2"]
[TimeControl "180+2"]
[WhiteFideId "13402129"]
[BlackFideId "5053196"]
[WhiteElo "2619"]
[BlackElo "2316"]
[WhiteTitle "GM"]
[BlackTitle "IM"]
[WhiteClock "0:00:17"]
[BlackClock "0:00:05"]
[Variant "Standard"]
[EndDate "2026.07.19"]
[EndTime "12:49:25"]

1. e4 {[%clk 0:03:02]}  c6 {[%clk 0:03:03]} 2. d4 {[%clk 0:03:03]}  d5 {[%clk 0:03:05]} 3. exd5 {[%clk 0:03:04]}  cxd5 {[%clk 0:03:06]}
4. c4 {[%clk 0:03:05]}  Nf6 {[%clk 0:03:07]} 5. Nc3 {[%clk 0:03:06]}  e6 {[%clk 0:03:08]} 6. Nf3 {[%clk 0:03:07]}  Bb4 {[%clk 0:03:08]}
7. cxd5 {[%clk 0:03:08]}  Nxd5 {[%clk 0:03:08]} 8. Bd2 {[%clk 0:03:08]}  Nc6 {[%clk 0:03:10]} 9. Bd3 {[%clk 0:03:09]}  O-O {[%clk 0:03:05]}
10. O-O {[%clk 0:03:10]}  Be7 {[%clk 0:03:06]} 11. Re1 {[%clk 0:03:08]}  Ndb4 {[%clk 0:02:33]} 12. Be4 {[%clk 0:03:04]}  Nxd4 {[%clk 0:02:32]}
13. Nxd4 {[%clk 0:03:05]}  Qxd4 {[%clk 0:02:33]} 14. Qe2 {[%clk 0:03:05]}  Bd7 {[%clk 0:01:59]} 15. Be3 {[%clk 0:02:33]}  Qe5 {[%clk 0:01:51]}
16. Bxb7 {[%clk 0:02:32]}  Rab8 {[%clk 0:01:46]} 17. Be4 {[%clk 0:02:26]}  Bb5 {[%clk 0:00:42]} 18. Nxb5 {[%clk 0:00:52]}  Qxe4 {[%clk 0:00:43]}
19. Nc3 {[%clk 0:00:52]}  Qb7 {[%clk 0:00:33]} 20. Rad1 {[%clk 0:00:53]}  Bf6 {[%clk 0:00:30]} 21. Bd4 {[%clk 0:00:48]}  Bxd4 {[%clk 0:00:27]}
22. Rxd4 {[%clk 0:00:50]}  Nc6 {[%clk 0:00:29]} 23. Rd2 {[%clk 0:00:51]}  Rfd8 {[%clk 0:00:24]} 24. Red1 {[%clk 0:00:53]}  a5 {[%clk 0:00:13]}
25. h4 {[%clk 0:00:45]}  h6 {[%clk 0:00:14]} 26. Qe4 {[%clk 0:00:42]}  Qc7 {[%clk 0:00:09]} 27. Rxd8+ {[%clk 0:00:41]}  Rxd8 {[%clk 0:00:10]}
28. Rxd8+ {[%clk 0:00:41]}  Nxd8 {[%clk 0:00:11]} 29. g3 {[%clk 0:00:40]}  Nc6 {[%clk 0:00:10]} 30. Kg2 {[%clk 0:00:30]}  Kf8 {[%clk 0:00:11]}
31. Qc4 {[%clk 0:00:21]}  Qb6 {[%clk 0:00:09]} 32. Ne4 {[%clk 0:00:18]}  Ke7 {[%clk 0:00:07]} 33. Qc3 {[%clk 0:00:18]}  e5 {[%clk 0:00:05]}
34. h5 {[%clk 0:00:16]}  f5 {[%clk 0:00:04]} 35. Nc5 {[%clk 0:00:16]}  Qb4 {[%clk 0:00:06]} 36. Qc1 {[%clk 0:00:07]}  Qd4 {[%clk 0:00:07]}
37. Nb3 {[%clk 0:00:07]}  Qd5+ {[%clk 0:00:08]} 38. Kg1 {[%clk 0:00:09]}  a4 {[%clk 0:00:09]} 39. Qc5+ {[%clk 0:00:08]}  Ke6 {[%clk 0:00:08]}
40. Qxd5+ {[%clk 0:00:06]}  Kxd5 {[%clk 0:00:10]} 41. Nd2 {[%clk 0:00:07]}  Kd4 {[%clk 0:00:11]} 42. b3 {[%clk 0:00:05]}  Kc3 {[%clk 0:00:11]}
43. Nf3 {[%clk 0:00:03]}  a3 {[%clk 0:00:12]} 44. Nh4 {[%clk 0:00:04]}  Nd4 {[%clk 0:00:13]} 45. f4 {[%clk 0:00:04]}  e4 {[%clk 0:00:13]}
46. Kf2 {[%clk 0:00:05]}  Kb2 {[%clk 0:00:15]} 47. Ke3 {[%clk 0:00:06]}  Nxb3 {[%clk 0:00:16]} 48. Nxf5 {[%clk 0:00:06]}  Nc5 {[%clk 0:00:18]}
49. Kd4 {[%clk 0:00:04]}  Kxa2 {[%clk 0:00:18]} 50. Kxc5 {[%clk 0:00:05]}  Kb2 {[%clk 0:00:17]} 51. Ne3 {[%clk 0:00:04]}  a2 {[%clk 0:00:18]}
52. Nc4+ {[%clk 0:00:05]}  Kc3 {[%clk 0:00:17]} 0-1

[Event "2026 Biel Blitz Open"]
[Site "Biel, CH"]
[Date "2026.07.19"]
[Round "4"]
[White "Shukhman, Anna"]
[Black "Amonatov, Farrukh"]
[Result "1-0"]
[Board "3"]
[TimeControl "180+2"]
[WhiteFideId "54180058"]
[BlackFideId "14700077"]
[WhiteElo "2392"]
[BlackElo "2585"]
[WhiteTitle "WGM"]
[BlackTitle "GM"]
[WhiteClock "0:00:07"]
[BlackClock "0:00:05"]
[Variant "Standard"]
[EndDate "2026.07.19"]
[EndTime "12:50:34"]

1. e4 {[%clk 0:03:03]}  c5 {[%clk 0:03:03]} 2. Nf3 {[%clk 0:03:04]}  d6 {[%clk 0:03:04]} 3. d4 {[%clk 0:03:05]}  cxd4 {[%clk 0:03:05]}
4. Nxd4 {[%clk 0:03:06]}  Nf6 {[%clk 0:03:05]} 5. Nc3 {[%clk 0:03:07]}  a6 {[%clk 0:03:06]} 6. Be2 {[%clk 0:03:08]}  e5 {[%clk 0:03:07]}
7. Nb3 {[%clk 0:03:09]}  Be7 {[%clk 0:03:07]} 8. Be3 {[%clk 0:03:10]}  Be6 {[%clk 0:03:08]} 9. Nd5 {[%clk 0:03:11]}  Nbd7 {[%clk 0:03:08]}
10. Qd3 {[%clk 0:03:12]}  Bxd5 {[%clk 0:03:03]} 11. exd5 {[%clk 0:03:12]}  O-O {[%clk 0:03:03]} 12. g4 {[%clk 0:03:01]}  Nc5 {[%clk 0:03:02]}
13. Nxc5 {[%clk 0:02:40]}  dxc5 {[%clk 0:03:03]} 14. O-O-O {[%clk 0:02:36]}  e4 {[%clk 0:02:57]} 15. Qb3 {[%clk 0:02:09]}  Bd6 {[%clk 0:02:53]}
16. Qxb7 {[%clk 0:02:08]}  Rb8 {[%clk 0:02:42]} 17. Qxa6 {[%clk 0:02:08]}  Qe7 {[%clk 0:02:35]} 18. c3 {[%clk 0:01:59]}  Nd7 {[%clk 0:01:50]}
19. Qc4 {[%clk 0:01:47]}  Ra8 {[%clk 0:01:43]} 20. Kb1 {[%clk 0:01:35]}  Rfb8 {[%clk 0:01:40]} 21. Rd2 {[%clk 0:01:24]}  Nb6 {[%clk 0:01:39]}
22. Qb3 {[%clk 0:01:24]}  Na4 {[%clk 0:01:40]} 23. Bb5 {[%clk 0:01:25]}  Ra5 {[%clk 0:01:31]} 24. c4 {[%clk 0:01:03]}  Nb6 {[%clk 0:01:26]}
25. Qc2 {[%clk 0:00:44]}  Be5 {[%clk 0:01:21]} 26. Qxe4 {[%clk 0:00:42]}  Qd6 {[%clk 0:01:04]} 27. f4 {[%clk 0:00:38]}  Bc3 {[%clk 0:00:31]}
28. bxc3 {[%clk 0:00:30]}  Nxc4 {[%clk 0:00:32]} 29. Qxc4 {[%clk 0:00:31]}  Raxb5+ {[%clk 0:00:33]} 30. Ka1 {[%clk 0:00:32]}  Qb6 {[%clk 0:00:33]}
31. Rdd1 {[%clk 0:00:13]}  h6 {[%clk 0:00:25]} 32. Qa4 {[%clk 0:00:07]}  Ra5 {[%clk 0:00:21]} 33. Qc2 {[%clk 0:00:07]}  Rba8 {[%clk 0:00:20]}
34. Rb1 {[%clk 0:00:08]}  Qg6 {[%clk 0:00:20]} 35. Rb2 {[%clk 0:00:05]}  Rxa2+ {[%clk 0:00:18]} 36. Rxa2 {[%clk 0:00:06]}  Qxc2 {[%clk 0:00:19]}
37. Rxa8+ {[%clk 0:00:07]}  Kh7 {[%clk 0:00:20]} 38. Rc1 {[%clk 0:00:07]}  Qd3 {[%clk 0:00:17]} 39. Bg1 {[%clk 0:00:05]}  Qxd5 {[%clk 0:00:18]}
40. Ra2 {[%clk 0:00:06]}  Qc4 {[%clk 0:00:16]} 41. Be3 {[%clk 0:00:05]}  Qe4 {[%clk 0:00:16]} 42. Re1 {[%clk 0:00:06]}  Qf3 {[%clk 0:00:16]}
43. g5 {[%clk 0:00:05]}  h5 {[%clk 0:00:17]} 44. Rf2 {[%clk 0:00:05]}  Qe4 {[%clk 0:00:18]} 45. Kb2 {[%clk 0:00:05]}  Qb7+ {[%clk 0:00:16]}
46. Kc1 {[%clk 0:00:06]}  Qb3 {[%clk 0:00:17]} 47. Rc2 {[%clk 0:00:06]}  Qc4 {[%clk 0:00:17]} 48. f5 {[%clk 0:00:06]}  Qe4 {[%clk 0:00:17]}
49. Rf2 {[%clk 0:00:07]}  Qd3 {[%clk 0:00:17]} 50. Bd2 {[%clk 0:00:07]}  Qd5 {[%clk 0:00:14]} 51. g6+ {[%clk 0:00:08]}  fxg6 {[%clk 0:00:14]}
52. fxg6+ {[%clk 0:00:09]}  Kxg6 {[%clk 0:00:15]} 53. Rg1+ {[%clk 0:00:09]}  Kh7 {[%clk 0:00:16]} 54. Rfg2 {[%clk 0:00:11]}  Kg8 {[%clk 0:00:05]}
55. Rxg7+ {[%clk 0:00:11]}  Kf8 {[%clk 0:00:07]} 56. Rg8+ {[%clk 0:00:09]}  Kf7 {[%clk 0:00:08]} 57. R1g7+ {[%clk 0:00:09]}  Kf6 {[%clk 0:00:09]}
58. Rg6+ {[%clk 0:00:08]}  Kf7 {[%clk 0:00:10]} 59. R8g7+ {[%clk 0:00:09]}  Kf8 {[%clk 0:00:11]} 60. Ra7 {[%clk 0:00:06]}  Qh1+ {[%clk 0:00:09]}
61. Kb2 {[%clk 0:00:06]}  Qxh2 {[%clk 0:00:10]} 62. Rf6+ {[%clk 0:00:06]}  Ke8 {[%clk 0:00:09]} 63. Kc2 {[%clk 0:00:06]}  Qe5 {[%clk 0:00:09]}
64. Rh6 {[%clk 0:00:05]}  Qf5+ {[%clk 0:00:06]} 65. Kb2 {[%clk 0:00:06]}  Qe5 {[%clk 0:00:04]} 66. Rh8+ {[%clk 0:00:06]}  Qxh8 {[%clk 0:00:05]}
67. Ra8+ {[%clk 0:00:07]} 1-0

[Event "2026 Biel Blitz Open"]
[Site "Biel, CH"]
[Date "2026.07.19"]
[Round "4"]
[White "Kozak, Adam"]
[Black "Omar, Noaman"]
[Result "1-0"]
[Board "4"]
[TimeControl "180+2"]
[WhiteFideId "753246"]
[BlackFideId "9300244"]
[WhiteElo "2537"]
[BlackElo "2274"]
[WhiteTitle "GM"]
[BlackTitle "IM"]
[WhiteClock "0:01:24"]
[BlackClock "0:00:14"]
[Variant "Standard"]
[EndDate "2026.07.19"]
[EndTime "12:45:55"]

1. d4 {[%clk 0:03:02]}  d5 {[%clk 0:03:03]} 2. c4 {[%clk 0:03:02]}  e6 {[%clk 0:03:03]} 3. Nc3 {[%clk 0:03:03]}  Be7 {[%clk 0:03:03]}
4. cxd5 {[%clk 0:03:03]}  exd5 {[%clk 0:03:03]} 5. Bf4 {[%clk 0:03:03]}  Nf6 {[%clk 0:02:24]} 6. e3 {[%clk 0:03:03]}  O-O {[%clk 0:02:19]}
7. Bd3 {[%clk 0:03:03]}  Re8 {[%clk 0:01:38]} 8. Nf3 {[%clk 0:02:40]}  Nh5 {[%clk 0:01:25]} 9. Be5 {[%clk 0:02:32]}  Nc6 {[%clk 0:01:17]}
10. Bg3 {[%clk 0:01:57]}  g6 {[%clk 0:00:41]} 11. Qd2 {[%clk 0:01:34]}  Bf6 {[%clk 0:00:14]} 12. O-O-O {[%clk 0:01:24]} 1-0

[Event "2026 Biel Blitz Open"]
[Site "Biel, CH"]
[Date "2026.07.19"]
[Round "4"]
[White "Gloeckler, Christian"]
[Black "Cao, Qingfeng"]
[Result "1-0"]
[Board "5"]
[TimeControl "180+2"]
[WhiteFideId "34608966"]
[BlackFideId "8627568"]
[WhiteElo "2513"]
[BlackElo "2264"]
[WhiteTitle "IM"]
[BlackTitle "IM"]
[WhiteClock "0:00:08"]
[BlackClock "0:00:05"]
[Variant "Standard"]
[EndDate "2026.07.19"]
[EndTime "12:50:33"]

1. e4 {[%clk 0:03:02]}  c6 {[%clk 0:03:03]} 2. Nc3 {[%clk 0:03:01]}  d5 {[%clk 0:03:04]} 3. Nf3 {[%clk 0:03:02]}  Bg4 {[%clk 0:03:04]}
4. h3 {[%clk 0:03:03]}  Bxf3 {[%clk 0:03:05]} 5. Qxf3 {[%clk 0:03:03]}  e6 {[%clk 0:03:06]} 6. Be2 {[%clk 0:03:04]}  Bc5 {[%clk 0:03:03]}
7. O-O {[%clk 0:03:04]}  Nd7 {[%clk 0:03:02]} 8. Na4 {[%clk 0:03:03]}  Bd6 {[%clk 0:02:36]} 9. d4 {[%clk 0:03:03]}  dxe4 {[%clk 0:02:35]}
10. Qxe4 {[%clk 0:03:03]}  Ngf6 {[%clk 0:02:35]} 11. Qh4 {[%clk 0:02:50]}  Nd5 {[%clk 0:02:26]} 12. Qxd8+ {[%clk 0:02:42]}  Rxd8 {[%clk 0:02:26]}
13. c4 {[%clk 0:02:41]}  Nf4 {[%clk 0:02:22]} 14. Bf3 {[%clk 0:02:40]}  O-O {[%clk 0:02:15]} 15. g3 {[%clk 0:02:34]}  Nd3 {[%clk 0:02:06]}
16. Bd2 {[%clk 0:02:28]}  Nb6 {[%clk 0:02:00]} 17. Nxb6 {[%clk 0:02:22]}  axb6 {[%clk 0:02:01]} 18. Rab1 {[%clk 0:01:51]}  Nb4 {[%clk 0:01:31]}
19. a3 {[%clk 0:01:10]}  Nc2 {[%clk 0:01:07]} 20. Bc3 {[%clk 0:01:10]}  Be7 {[%clk 0:01:07]} 21. d5 {[%clk 0:01:06]}  cxd5 {[%clk 0:01:08]}
22. cxd5 {[%clk 0:00:41]}  exd5 {[%clk 0:01:08]} 23. Rbd1 {[%clk 0:00:41]}  d4 {[%clk 0:01:01]} 24. Bd2 {[%clk 0:00:42]}  Bf6 {[%clk 0:00:49]}
25. Be4 {[%clk 0:00:31]}  d3 {[%clk 0:00:49]} 26. Bc1 {[%clk 0:00:32]}  Nd4 {[%clk 0:00:43]} 27. Bxd3 {[%clk 0:00:17]}  Nb3 {[%clk 0:00:43]}
28. Be3 {[%clk 0:00:18]}  Nc5 {[%clk 0:00:43]} 29. Bxc5 {[%clk 0:00:10]}  bxc5 {[%clk 0:00:44]} 30. b3 {[%clk 0:00:12]}  b6 {[%clk 0:00:41]}
31. Bc4 {[%clk 0:00:12]}  Bd4 {[%clk 0:00:37]} 32. Kg2 {[%clk 0:00:12]}  Rfe8 {[%clk 0:00:36]} 33. Rfe1 {[%clk 0:00:13]}  Kf8 {[%clk 0:00:36]}
34. f4 {[%clk 0:00:12]}  f5 {[%clk 0:00:33]} 35. Kf3 {[%clk 0:00:12]}  g6 {[%clk 0:00:34]} 36. g4 {[%clk 0:00:12]}  Kg7 {[%clk 0:00:29]}
37. Bb5 {[%clk 0:00:09]}  Rxe1 {[%clk 0:00:25]} 38. Rxe1 {[%clk 0:00:10]}  Bf6 {[%clk 0:00:12]} 39. g5 {[%clk 0:00:11]}  Bb2 {[%clk 0:00:10]}
40. Re7+ {[%clk 0:00:09]}  Kh8 {[%clk 0:00:08]} 41. a4 {[%clk 0:00:09]}  Bc3 {[%clk 0:00:06]} 42. Rb7 {[%clk 0:00:09]}  Ba5 {[%clk 0:00:04]}
43. Bc4 {[%clk 0:00:10]}  Re8 {[%clk 0:00:04]} 44. Rd7 {[%clk 0:00:07]}  Bc3 {[%clk 0:00:05]} 45. Rd6 {[%clk 0:00:07]}  Ba5 {[%clk 0:00:06]}
46. h4 {[%clk 0:00:06]}  Rf8 {[%clk 0:00:06]} 47. h5 {[%clk 0:00:07]}  gxh5 {[%clk 0:00:05]} 48. Rh6 {[%clk 0:00:08]}  Kg7 {[%clk 0:00:04]}
49. Rxh5 {[%clk 0:00:09]}  Re8 {[%clk 0:00:03]} 50. Bd3 {[%clk 0:00:06]}  Bd2 {[%clk 0:00:04]} 51. Bxf5 {[%clk 0:00:06]}  Re3+ {[%clk 0:00:04]}
52. Kg4 {[%clk 0:00:08]}  Rxb3 {[%clk 0:00:04]} 53. Rxh7+ {[%clk 0:00:08]}  Kf8 {[%clk 0:00:05]} 54. g6 {[%clk 0:00:09]}  Rb4 {[%clk 0:00:05]}
55. g7+ {[%clk 0:00:07]}  Kg8 {[%clk 0:00:05]} 56. Be6+ {[%clk 0:00:08]} 1-0

[Event "2026 Biel Blitz Open"]
[Site "Biel, CH"]
[Date "2026.07.19"]
[Round "4"]
[White "Tureshbayev, Anuar"]
[Black "Aronyak Ghosh"]
[Result "0-1"]
[Board "6"]
[TimeControl "180+2"]
[WhiteFideId "651081709"]
[BlackFideId "25072846"]
[WhiteElo "2328"]
[BlackElo "2488"]
[WhiteTitle "FM"]
[BlackTitle "IM"]
[WhiteClock "0:00:04"]
[BlackClock "0:00:51"]
[Variant "Standard"]
[EndDate "2026.07.19"]
[EndTime "12:46:36"]

1. e4 {[%clk 0:03:03]}  Nf6 {[%clk 0:03:03]} 2. e5 {[%clk 0:03:02]}  Nd5 {[%clk 0:03:04]} 3. d4 {[%clk 0:03:03]}  d6 {[%clk 0:03:05]}
4. Nf3 {[%clk 0:02:59]}  dxe5 {[%clk 0:03:05]} 5. dxe5 {[%clk 0:02:59]}  Nc6 {[%clk 0:02:46]} 6. a3 {[%clk 0:02:40]}  Bg4 {[%clk 0:02:40]}
7. Be2 {[%clk 0:02:35]}  e6 {[%clk 0:02:38]} 8. O-O {[%clk 0:02:24]}  Be7 {[%clk 0:02:33]} 9. c4 {[%clk 0:02:09]}  Nb6 {[%clk 0:02:29]}
10. Qc2 {[%clk 0:01:57]}  Bxf3 {[%clk 0:01:59]} 11. Bxf3 {[%clk 0:01:57]}  Nd4 {[%clk 0:02:00]} 12. Qe4 {[%clk 0:01:51]}  Nxc4 {[%clk 0:01:41]}
13. Rd1 {[%clk 0:01:13]}  c5 {[%clk 0:01:27]} 14. b3 {[%clk 0:00:50]}  Nxe5 {[%clk 0:01:21]} 15. Be2 {[%clk 0:00:46]}  Qd5 {[%clk 0:01:11]}
16. Bb5+ {[%clk 0:00:18]}  Nec6 {[%clk 0:01:03]} 17. Qg4 {[%clk 0:00:04]}  h5 {[%clk 0:00:51]} 18. Qxg7 {[%clk 0:00:04]} 0-1

[Event "2026 Biel Blitz Open"]
[Site "Biel, CH"]
[Date "2026.07.19"]
[Round "4"]
[White "Alexakis, Dimitris"]
[Black "Ling, Chenxuan"]
[Result "0-1"]
[Board "7"]
[TimeControl "180+2"]
[WhiteFideId "4277023"]
[BlackFideId "30983118"]
[WhiteElo "2459"]
[BlackElo "2235"]
[WhiteTitle "GM"]
[BlackTitle "CM"]
[WhiteClock "0:00:20"]
[BlackClock "0:00:04"]
[Variant "Standard"]
[EndDate "2026.07.19"]
[EndTime "12:49:43"]

1. e4 {[%clk 0:03:02]}  e6 {[%clk 0:03:03]} 2. d4 {[%clk 0:03:02]}  d5 {[%clk 0:03:03]} 3. Nc3 {[%clk 0:03:03]}  Bb4 {[%clk 0:03:03]}
4. e5 {[%clk 0:03:03]}  c5 {[%clk 0:03:04]} 5. a3 {[%clk 0:03:04]}  Bxc3+ {[%clk 0:03:03]} 6. bxc3 {[%clk 0:03:04]}  Ne7 {[%clk 0:03:03]}
7. h4 {[%clk 0:03:04]}  Qc7 {[%clk 0:03:04]} 8. Nf3 {[%clk 0:02:56]}  b6 {[%clk 0:03:03]} 9. h5 {[%clk 0:02:45]}  h6 {[%clk 0:03:03]}
10. Bb5+ {[%clk 0:02:27]}  Bd7 {[%clk 0:03:01]} 11. Bd3 {[%clk 0:02:18]}  Ba4 {[%clk 0:02:53]} 12. Rh4 {[%clk 0:02:02]}  c4 {[%clk 0:02:46]}
13. Be2 {[%clk 0:02:03]}  Nd7 {[%clk 0:02:42]} 14. Rg4 {[%clk 0:02:00]}  Nf5 {[%clk 0:02:40]} 15. Nh4 {[%clk 0:01:51]}  Nxh4 {[%clk 0:02:39]}
16. Rxh4 {[%clk 0:01:51]}  O-O-O {[%clk 0:02:38]} 17. Rg4 {[%clk 0:01:47]}  Rhg8 {[%clk 0:02:38]} 18. Bf4 {[%clk 0:01:46]}  Rdf8 {[%clk 0:02:27]}
19. Qd2 {[%clk 0:01:46]}  Qc6 {[%clk 0:02:15]} 20. Kf1 {[%clk 0:01:12]}  f6 {[%clk 0:02:14]} 21. Kg1 {[%clk 0:01:09]}  fxe5 {[%clk 0:02:13]}
22. dxe5 {[%clk 0:01:09]}  Qc7 {[%clk 0:02:01]} 23. Rg6 {[%clk 0:01:00]}  Nc5 {[%clk 0:01:58]} 24. Bg4 {[%clk 0:00:50]}  Bd7 {[%clk 0:01:44]}
25. Be3 {[%clk 0:00:47]}  Ne4 {[%clk 0:01:38]} 26. Qd4 {[%clk 0:00:44]}  Re8 {[%clk 0:01:35]} 27. a4 {[%clk 0:00:39]}  Kb8 {[%clk 0:01:17]}
28. a5 {[%clk 0:00:39]}  b5 {[%clk 0:01:18]} 29. f3 {[%clk 0:00:30]}  Ng5 {[%clk 0:01:10]} 30. Bxg5 {[%clk 0:00:29]}  hxg5 {[%clk 0:01:11]}
31. Rxg5 {[%clk 0:00:29]}  Re7 {[%clk 0:00:59]} 32. f4 {[%clk 0:00:30]}  Rf7 {[%clk 0:00:57]} 33. g3 {[%clk 0:00:30]}  Rgf8 {[%clk 0:00:54]}
34. Rg6 {[%clk 0:00:23]}  Qc8 {[%clk 0:00:52]} 35. Kg2 {[%clk 0:00:18]}  Re7 {[%clk 0:00:49]} 36. Rh1 {[%clk 0:00:12]}  Rh8 {[%clk 0:00:44]}
37. h6 {[%clk 0:00:13]}  gxh6 {[%clk 0:00:44]} 38. f5 {[%clk 0:00:08]}  exf5 {[%clk 0:00:38]} 39. Bf3 {[%clk 0:00:06]}  Bc6 {[%clk 0:00:32]}
40. e6 {[%clk 0:00:05]}  Rhe8 {[%clk 0:00:26]} 41. Rh2 {[%clk 0:00:04]}  h5 {[%clk 0:00:26]} 42. Rxh5 {[%clk 0:00:06]}  Rxe6 {[%clk 0:00:25]}
43. Rhh6 {[%clk 0:00:04]}  Re2+ {[%clk 0:00:20]} 0-1